bitfinex/quotes_ETHUSD_20240607
["timestamp","ask_amount","ask_price","bid_price","bid_amount"]
[1717796484353,0.10994535,3695.1,3695.0,2.70635]
[1717796484556,2.2949,3695.5,3695.0,2.70635]
[1717796485111,0.11002976,3695.4,3695.0,2.70635]
[1717796491144,0.11002976,3695.4,3695.2,2.70614]
[1717796498988,0.10962063,3695.3,3695.2,2.70614]
[1717796499195,0.10962063,3695.3,3695.2,2.976754]
[1717796499352,9.7291,3695.7,3695.2,2.976754]
[1717796499541,0.10935522,3695.3,3695.2,2.70614]
[1717796500353,0.10959983,3695.3,3695.2,2.70614]
[1717796500581,9.7291,3695.7,3695.2,2.70614]
[1717796500956,0.10943964,3695.6,3695.2,2.70614]
[1717796502984,0.10943964,3695.6,3695.4,2.70601]
[1717796507750,0.10943964,3695.6,3695.4,2.976611]
[1717796507954,2.2991,3695.8,3695.4,2.976611]
[1717796508483,0.1097919,3695.7,3695.4,2.976611]
[1717796514599,3.85594915,3696.0,3695.4,2.976611]
[1717796514756,0.10988422,3695.6,3695.4,2.976611]
[1717796515109,3.2708,3696.0,3695.6,2.7059]
[1717796519107,0.11000723,3695.9,3695.6,2.7059]
[1717796527916,0.58514903,3696.1,3695.9,2.70569]
[1717796529343,0.58514903,3696.1,3695.9,4.99699]
[1717796529494,0.58514903,3696.1,3696.0,0.499699]
[1717796531292,4.38514903,3696.6,3696.1,2.70551]
[1717796532151,3.58514903,3696.6,3696.1,2.70551]
[1717796532431,4.38514903,3696.6,3696.1,2.70551]
[1717796533034,4.38506154,3696.6,3696.1,2.70551]
[1717796533528,3.58506154,3696.6,3696.1,2.70551]
[1717796534119,0.11035545,3696.5,3696.1,2.70551]
[1717796539924,0.11035545,3696.5,3696.1,2.976061]
[1717796540131,0.11035545,3696.5,3696.3,2.70535]
[1717796540836,0.11032734,3696.4,3696.3,2.70535]
[1717796541131,0.8,3696.8,3696.3,2.70535]
[1717796541797,0.11042209,3696.7,3696.3,2.70535]
[1717796541991,0.8,3696.8,3696.3,3.2320701]
[1717796542397,0.11042209,3696.7,3696.3,3.2320701]
[1717796542733,0.8,3696.8,3696.3,3.2320701]
[1717796542932,2.4348,3696.3,3695.2,0.8]
[1717796543097,7.43,3696.4,3695.8,2.7057]
[1717796543305,7.43,3696.4,3696.0,2.7056]
[1717796543306,0.11029869,3696.2,3696.0,2.7056]
[1717796543499,0.58506154,3696.3,3696.0,2.7056]
[1717796543832,3.0,3696.6,3696.0,2.7056]
[1717796544197,0.11040385,3696.5,3696.2,2.70547]
[1717796549237,3.81983203,3696.7,3696.2,2.70547]
[1717796549439,0.11049428,3696.6,3696.2,2.70547]
[1717796549746,0.11049428,3696.6,3696.3,0.270547]
[1717796556352,0.11049428,3696.6,3696.2,2.70547]
[1717796557566,0.8,3696.8,3696.2,2.70547]
[1717796558178,0.11056841,3696.7,3696.2,2.70547]
[1717796566858,0.11056841,3696.7,3696.3,2.424]
[1717796567058,0.58504289,3696.9,3696.3,2.424]
[1717796567273,0.69546831,3696.8,3696.3,2.424]
[1717796567574,0.11042542,3696.8,3696.3,2.424]
[1717796567782,0.69546831,3696.8,3696.3,2.424]
[1717796567965,0.11042542,3696.8,3696.3,2.424]
[1717796568145,0.69546831,3696.8,3696.3,2.424]
[1717796568346,0.11042542,3696.8,3696.3,2.424]
[1717796568545,0.69546831,3696.8,3696.3,2.424]
[1717796568775,0.11042542,3696.8,3696.3,2.424]
[1717796568981,0.69546831,3696.8,3696.3,2.424]
[1717796569186,0.11042542,3696.8,3696.3,2.424]
[1717796569344,0.69546831,3696.8,3696.3,2.424]
[1717796569550,0.11042542,3696.8,3696.3,2.424]
[1717796569786,0.69546831,3696.8,3696.3,2.424]
[1717796569985,0.11042542,3696.8,3696.3,2.424]
[1717796570185,0.69546831,3696.8,3696.3,2.424]
[1717796570387,0.11042542,3696.8,3696.3,2.424]
[1717796570591,0.69546831,3696.8,3696.3,2.424]
[1717796572560,0.11042542,3696.8,3696.7,2.70511]
[1717796572764,0.11042542,3696.8,3696.7,6.41086466]
[1717796572996,0.008,3697.6,3697.5,5.01743]
[1717796573197,0.58504289,3697.9,3697.5,5.81743]
[1717796573404,7.43,3698.0,3697.5,5.81743]
[1717796573405,0.09208301,3697.6,3697.5,5.81743]
[1717796573860,7.43,3698.0,3697.5,5.81743]
[1717796574066,0.08908967,3697.9,3697.5,3.50453]
[1717796574268,0.08908967,3697.9,3695.5,2.93453882]
[1717796574269,0.8,3697.6,3696.0,2.3129]
[1717796574492,0.08937225,3697.5,3696.6,2.70518]
[1717796574689,0.8,3697.4,3696.6,2.70518]
[1717796574996,0.88934414,3697.4,3696.9,2.70492]
[1717796576984,0.08934414,3697.4,3696.9,2.70492]
[1717796577182,4.38480262,3697.6,3696.9,2.70492]
[1717796577365,0.0891867,3697.3,3696.9,2.70492]
[1717796577572,0.95090226,3697.5,3696.9,2.70492]
[1717796577774,0.08915858,3697.2,3696.9,2.70492]
[1717796577994,4.38480262,3697.6,3696.9,2.70492]
[1717796578198,0.08913047,3697.1,3696.9,2.70492]
[1717796578391,4.38480262,3697.6,3696.9,2.70492]
[1717796578591,0.08910236,3697.0,3696.9,2.70492]
[1717796578899,0.08911736,3697.0,3696.9,2.70492]
[1717796579079,4.38480262,3697.6,3696.9,2.70492]
[1717796579279,0.08925791,3697.5,3696.9,2.70492]
[1717796582298,0.08925791,3697.5,3696.5,2.70525]
[1717796582299,0.8,3697.0,3696.5,2.70525]
[1717796582499,2.4464,3696.9,3696.5,2.70525]
[1717796582678,2.53547787,3696.9,3696.5,2.70525]
[1717796586714,0.08907787,3696.9,3696.5,2.70525]
[1717796586917,0.8,3697.0,3696.5,2.70525]
[1717796587232,0.08904976,3696.8,3696.5,2.70525]
[1717796587401,0.08907787,3696.9,3696.5,2.70525]
[1717796587598,0.08902164,3696.7,3696.5,2.70525]
[1717796587923,0.08891182,3696.6,3696.5,2.70525]
[1717796588140,0.8,3697.0,3696.5,2.70525]
[1717796588297,0.08891182,3696.6,3696.5,2.70525]
[1717796588499,0.8,3697.0,3696.5,2.70525]
[1717796588695,0.08892222,3696.6,3696.5,2.70525]
[1717796588918,0.8,3697.0,3696.5,2.70525]
[1717796589112,0.08892222,3696.6,3696.5,2.70525]
[1717796589422,0.8,3697.0,3696.5,2.70525]
[1717796589622,0.08892222,3696.6,3696.5,2.70525]
[1717796589825,0.8,3697.0,3696.5,2.70525]
[1717796590325,0.08900657,3696.9,3696.5,2.70525]
[1717796608918,0.78104289,3696.9,3696.5,2.70525]
[1717796609124,0.78104289,3696.9,3694.8,5.01027]
[1717796609125,3.5052,3696.6,3695.6,2.70585]
[1717796609352,0.8,3696.2,3695.6,2.70585]
[1717796609555,0.8,3696.0,3695.6,2.70585]
[1717796610045,0.08903016,3695.9,3695.6,2.70585]
[1717796611373,0.08903016,3695.9,3695.3,2.70613]
[1717796613057,0.8,3695.4,3693.8,0.75]
[1717796613237,0.8,3695.2,3694.6,2.70658]
[1717796613632,0.08851837,3695.1,3694.6,2.70658]
[1717796614243,0.8,3695.3,3694.6,2.70658]
[1717796614423,0.08841755,3695.0,3694.6,2.70658]
[1717796614637,0.8,3695.1,3694.6,2.70658]
[1717796614832,0.08837124,3694.9,3694.6,2.70658]
[1717796615033,0.08839938,3695.0,3694.6,2.70658]
[1717796615240,0.08831584,3694.8,3694.6,2.70658]
[1717796615447,0.8,3695.3,3694.6,2.70658]
[1717796615625,0.0882877,3694.7,3694.6,2.70658]
[1717796615825,0.8,3695.3,3694.6,2.70658]
[1717796616229,0.08839659,3695.2,3694.6,2.70658]
[1717796616947,0.8,3695.0,3694.6,2.70658]
[1717796617339,0.08825309,3694.9,3694.6,2.70658]
[1717796618336,0.08825309,3694.9,3694.2,2.70689]
[1717796618833,0.8,3695.0,3694.2,2.70689]
[1717796621359,5.1945,3695.4,3694.2,2.70689]
[1717796621563,0.8,3694.9,3694.2,2.70689]
[1717796622061,0.08812046,3694.8,3694.2,2.70689]
[1717796627832,0.8,3694.4,3694.2,2.70689]
[1717796628233,0.08502452,3694.3,3694.2,2.70689]
[1717796629352,0.08502452,3694.3,3693.3,0.8]
[1717796630337,0.08502452,3694.3,3693.9,2.70716]
[1717796633881,0.08502452,3694.3,3693.6,2.70737]
[1717796634776,0.8,3694.2,3693.6,2.70737]
[1717796634976,0.88176075,3694.2,3693.6,2.70737]
[1717796640335,2.344,3694.1,3693.6,2.70737]
[1717796640665,0.08060674,3694.0,3693.6,2.70737]
[1717796641156,0.8,3693.9,3693.2,5.1463]
[1717796641359,0.88054449,3693.9,3693.2,5.1463]
[1717796642245,0.88054449,3693.9,3693.2,2.7076]
[1717796645233,0.08054449,3693.9,3693.2,2.7076]
[1717796645459,0.88054449,3693.9,3693.2,2.7076]
[1717796650045,0.88054449,3693.9,3692.0,3.45852]
[1717796650359,2.2808,3693.8,3692.1,2.28870666]
[1717796650540,0.07547702,3693.7,3692.7,0.8]
[1717796651247,0.07547702,3693.7,3692.1,2.57062464]
[1717796651446,0.07547702,3693.7,3692.6,0.8]
[1717796652381,0.07547702,3693.7,3692.8,2.70792]
[1717796655882,0.8,3693.6,3692.8,2.70792]
[1717796656278,0.07521318,3693.5,3692.8,2.70792]
[1717796658284,2.3125,3693.4,3692.8,2.70792]
[1717796658498,2.38781724,3693.4,3692.9,0.350792]
[1717796667413,3.18781724,3693.4,3692.8,2.70792]
[1717796676932,2.38781724,3693.4,3692.8,2.70792]
[1717796677141,0.8,3693.3,3692.8,2.70792]
[1717796677529,0.0718986,3693.2,3692.8,2.70792]
[1717796677844,0.8,3693.3,3692.8,2.70792]
[1717796678008,0.07187044,3693.1,3692.8,2.70792]
[1717796678209,0.8,3693.3,3692.8,2.70792]
[1717796678409,0.07184227,3693.0,3692.8,2.70792]
[1717796678605,0.8,3693.3,3692.8,2.70792]
[1717796678911,0.07181409,3692.9,3692.8,2.70792]
[1717796679248,0.07158035,3692.9,3692.8,2.70792]
[1717796679431,0.8,3693.3,3692.8,2.70792]
[1717796679629,0.07159076,3692.9,3692.8,2.70792]
[1717796679808,0.8,3693.3,3692.8,2.70792]
[1717796680007,0.07159076,3692.9,3692.8,2.70792]
[1717796680208,0.8,3693.3,3692.8,2.70792]
[1717796680924,0.07176707,3693.2,3692.8,2.70792]
[1717796681368,0.8,3693.3,3692.8,2.70792]
[1717796681663,0.0717374,3693.2,3692.8,2.70792]
[1717796681867,0.8,3693.3,3692.8,2.70792]
[1717796682068,0.07159662,3693.1,3692.8,2.70792]
[1717796682263,0.8,3693.3,3692.8,2.70792]
[1717796682439,0.07157886,3693.0,3692.8,2.70792]
[1717796682763,0.8,3693.3,3692.8,2.70792]
[1717796682942,0.07155069,3692.9,3692.8,2.70792]
[1717796683129,0.8,3693.3,3692.8,2.70792]
[1717796683331,0.07155069,3692.9,3692.8,2.70792]
[1717796683562,0.8,3693.3,3692.8,2.70792]
[1717796683725,0.07155069,3692.9,3692.8,2.70792]
[1717796684272,0.8,3693.3,3692.8,2.70792]
[1717796684425,0.07155069,3692.9,3692.8,2.70792]
[1717796684620,0.8,3693.3,3692.8,2.70792]
[1717796684860,0.07155069,3692.9,3692.8,2.70792]
[1717796685057,0.8,3693.3,3692.8,2.70792]
[1717796685235,0.07154028,3692.9,3692.8,2.70792]
[1717796685436,0.8,3693.3,3692.8,2.70792]
[1717796685636,0.07155069,3692.9,3692.8,2.70792]
[1717796685865,0.8,3693.3,3692.8,2.70792]
[1717796686038,0.07155069,3692.9,3692.8,2.70792]
[1717796686645,1.44054985,3693.3,3692.8,2.70792]
[1717796686846,0.07155069,3692.9,3692.8,2.70792]
[1717796687062,0.8,3693.3,3692.8,2.70792]
[1717796687268,0.07152987,3692.9,3692.8,2.70792]
[1717796687565,0.8,3693.3,3692.8,2.70792]
[1717796687771,0.07152987,3692.9,3692.8,2.70792]
[1717796687969,0.8,3693.3,3692.8,2.70792]
[1717796688425,0.07161438,3693.2,3692.8,2.70792]
[1717796688745,0.8,3693.3,3692.8,2.70792]
[1717796688945,0.07158622,3693.1,3692.8,2.70792]
[1717796689156,0.07161438,3693.2,3692.8,2.70792]
[1717796689360,0.07156845,3693.0,3692.8,2.70792]
[1717796689671,0.07154028,3692.9,3692.8,2.70792]
[1717796689967,0.8,3693.3,3692.8,2.70792]
[1717796690146,0.07154028,3692.9,3692.8,2.70792]
[1717796690342,0.8,3693.3,3692.8,2.70792]
[1717796690548,0.07154028,3692.9,3692.8,2.70792]
[1717796690747,0.8,3693.3,3692.8,2.70792]
[1717796690974,0.07152987,3692.9,3692.8,2.70792]
[1717796691279,0.07154028,3692.9,3692.8,2.70792]
[1717796691476,0.8,3693.3,3692.8,2.70792]
[1717796691671,0.07152201,3692.9,3692.8,2.70792]
[1717796691874,0.8,3693.3,3692.8,2.70792]
[1717796692076,0.07152201,3692.9,3692.8,2.70792]
[1717796692279,0.8,3693.3,3692.8,2.70792]
[1717796692585,0.07152201,3692.9,3692.8,2.70792]
[1717796692754,0.8,3693.3,3692.8,2.70792]
[1717796693241,0.07158571,3693.2,3692.8,2.70792]
[1717796693570,0.8,3693.3,3692.8,2.70792]
[1717796693777,0.07155754,3693.1,3692.8,2.70792]
[1717796694080,0.07152937,3693.0,3692.8,2.70792]
[1717796694276,3.1125,3693.4,3692.8,2.70792]
[1717796694439,0.0715012,3692.9,3692.8,2.70792]
[1717796694640,3.1125,3693.4,3692.8,2.70792]
[1717796694841,0.0715012,3692.9,3692.8,2.70792]
[1717796695178,3.1125,3693.4,3692.8,2.70792]
[1717796695378,0.0715012,3692.9,3692.8,2.70792]
[1717796695577,3.1125,3693.4,3692.8,2.70792]
[1717796696091,0.07161388,3693.3,3692.8,2.70792]
[1717796707554,0.07161388,3693.3,3693.1,2.7077]
[1717796707845,0.58556235,3693.8,3693.2,2.3074]
[1717796708224,0.58556235,3694.3,3693.4,2.3074]
[1717796708423,8.23,3694.4,3693.4,2.3074]
[1717796708636,9.553509,3694.4,3693.4,2.3074]
[1717796708837,0.58538578,3694.3,3693.4,2.3074]
[1717796709250,9.553509,3694.4,3693.7,2.70731]
[1717796711568,0.8,3694.2,3693.7,2.70731]
[1717796712161,8.753509,3694.4,3693.7,2.70731]
[1717796712383,0.8,3694.3,3693.7,2.70731]
[1717796714169,0.06920151,3694.2,3693.7,2.70731]
[1717796715181,0.06920151,3694.2,3693.7,5.01471]
[1717796719794,0.06920151,3694.2,3693.7,2.70731]
[1717796719986,0.8,3694.1,3693.7,2.70731]
[1717796720291,0.06689093,3694.0,3693.7,2.70731]
[1717796731012,0.06689093,3694.0,3693.7,5.06551]
[1717796731511,0.06634077,3693.9,3693.7,5.06551]
[1717796731678,0.8,3694.2,3693.7,5.06551]
[1717796732016,0.10544411,3693.8,3693.7,5.06551]
[1717796732303,0.10548241,3693.8,3693.7,5.06551]
[1717796732525,0.8,3694.2,3693.7,5.06551]
[1717796732875,0.10556369,3694.1,3693.7,5.06551]
[1717796736012,0.10556369,3694.1,3693.7,2.70731]
[1717796751032,2.4812,3694.0,3693.7,2.70731]
[1717796751330,0.10360187,3693.9,3693.7,2.70731]
[1717796751827,1.150677,3694.2,3693.7,2.70731]
[1717796752028,0.10357477,3693.8,3693.7,2.70731]
[1717796752230,0.8,3694.2,3693.7,2.70731]
[1717796752722,0.10369648,3694.1,3693.7,2.70731]
[1717796758003,0.8,3694.3,3693.7,2.70731]
[1717796758660,0.1036528,3694.2,3693.7,2.70731]
[1717796758843,0.46469508,3694.2,3693.7,2.70731]
[1717796759161,0.8,3694.1,3693.7,2.70731]
[1717796759614,0.10360775,3694.0,3693.7,2.70731]
[1717796761639,3.2094,3694.3,3693.7,2.70731]
[1717796761962,0.10366193,3694.2,3693.7,2.70731]
[1717796770187,0.10366193,3694.2,3694.1,2.70701]
[1717796770682,0.10367194,3694.2,3694.1,2.70701]
[1717796770883,2.4823,3694.2,3694.1,2.70701]
[1717796771091,2.58597194,3694.2,3694.1,2.70701]
[1717796777644,2.92456913,3694.2,3694.1,2.70701]
[1717796778712,2.92456913,3694.2,3693.8,2.70721]
[1717796779511,0.8,3694.1,3693.8,2.70721]
[1717796780042,0.10364235,3694.0,3693.8,2.70721]
[1717796780444,0.8,3693.9,3693.8,2.70721]
[1717796780617,0.8,3693.9,3693.5,2.70743]
[1717796780825,0.90361526,3693.9,3693.5,2.70743]
[1717796783941,0.10361526,3693.9,3693.5,2.70743]
[1717796784339,4.38541347,3694.1,3693.5,2.70743]
[1717796784639,0.10355393,3693.8,3693.5,2.70743]
[1717796784854,5.10604454,3694.1,3693.5,2.70743]
[1717796785037,0.10352683,3693.7,3693.5,2.70743]
[1717796785351,5.10604454,3694.1,3693.5,2.70743]
[1717796785650,0.10350974,3693.6,3693.5,2.70743]
[1717796785955,0.10298233,3693.6,3693.5,2.70743]
[1717796786295,0.8,3693.9,3693.5,2.70743]
[1717796786755,0.10303652,3693.8,3693.5,2.70743]
[1717796787346,0.8,3694.0,3693.5,2.70743]
[1717796787528,0.10252733,3693.7,3693.5,2.70743]
[1717796787736,0.8,3694.0,3693.5,2.70743]
[1717796787934,0.10250023,3693.6,3693.5,2.70743]
[1717796788127,1.38543911,3694.0,3693.5,2.70743]
[1717796788327,0.10250023,3693.6,3693.5,2.70743]
[1717796788556,0.8,3694.0,3693.5,2.70743]
[1717796788798,0.1020176,3693.6,3693.5,2.70743]
[1717796789072,0.8,3694.0,3693.5,2.70743]
[1717796789271,0.1020176,3693.6,3693.5,2.70743]
[1717796789430,0.8,3694.0,3693.5,2.70743]
[1717796789630,0.1020176,3693.6,3693.5,2.70743]
[1717796789826,0.8,3694.0,3693.5,2.70743]
[1717796790158,2.26363363,3694.0,3693.5,2.70743]
[1717796790363,0.10161564,3693.9,3693.5,2.70743]
[1717796801193,2.402,3693.8,3693.5,2.70743]
[1717796801428,2.50115719,3693.8,3693.5,2.70743]
[1717796801731,0.09915719,3693.8,3693.5,2.70743]
[1717796801933,3.78743983,3694.0,3693.5,2.70743]
[1717796802100,0.09913009,3693.7,3693.5,2.70743]
[1717796802434,3.78743983,3694.0,3693.5,2.70743]
[1717796802631,0.09910299,3693.6,3693.5,2.70743]
[1717796802831,3.78743983,3694.0,3693.5,2.70743]
[1717796803031,0.09910299,3693.6,3693.5,2.70743]
[1717796803238,3.78744028,3694.0,3693.5,2.70743]
[1717796803538,0.09910299,3693.6,3693.5,2.70743]
[1717796804236,3.78744028,3694.0,3693.5,2.70743]
[1717796804422,0.09910299,3693.6,3693.5,2.70743]
[1717796805129,0.8,3694.0,3693.5,5.16333]
[1717796805329,0.09918428,3693.9,3693.5,5.16333]
[1717796807539,0.09918428,3693.9,3693.5,2.70743]
[1717796807751,0.8,3693.8,3693.5,2.70743]
[1717796807918,2.4495,3693.7,3693.5,2.70743]
[1717796808125,0.89910529,3693.6,3693.2,2.70765]
[1717796808335,0.8,3693.4,3693.2,2.70765]
[1717796808516,0.09902399,3693.3,3693.2,2.70765]
[1717796820977,0.8,3693.3,3693.2,2.70765]
[1717796821134,0.89651637,3693.3,3693.2,2.70765]
[1717796828083,0.89651637,3693.3,3692.9,2.70788]
[1717796828301,0.8,3693.1,3692.9,2.70788]
[1717796828650,0.09560135,3693.0,3692.9,2.70788]
[1717796832574,0.09560135,3693.0,3692.9,3.205588]
[1717796833380,0.8,3693.0,3692.9,3.205588]
[1717796833765,0.89558486,3693.0,3692.9,3.205588]
[1717796844161,3.34458486,3693.0,3692.9,3.205588]
[1717796844356,3.34458486,3693.0,3692.9,2.70788]
[1717796846898,2.54458486,3693.0,3692.9,2.70788]
[1717796847099,3.34458486,3693.0,3692.9,2.70788]
[1717796850003,0.89558486,3693.0,3692.9,2.70788]
[1717796867459,0.09558486,3693.0,3692.9,2.70788]
[1717796867617,0.89558486,3693.0,3692.9,2.70788]
[1717796881360,3.65169335,3693.0,3692.6,2.70808]
[1717796881534,3.2193,3692.7,3692.6,2.70808]
[1717796881946,3.31318899,3692.7,3692.6,2.70808]
[1717796884743,3.31318899,3692.7,3692.3,2.70831]
[1717796884972,0.09388899,3692.7,3692.3,4.97661]
[1717796885279,0.8,3692.4,3692.3,4.97661]
[1717796885651,0.8,3692.4,3692.3,2.70831]
[1717796885859,0.89364099,3692.4,3692.3,2.70831]
[1717796887234,0.89364099,3692.4,3691.9,2.70857]
[1717796887476,0.8,3692.1,3691.9,2.70857]
[1717796887835,0.09339325,3692.0,3691.9,2.70857]
[1717796891342,2.86365257,3692.0,3691.5,2.70885]
[1717796891547,0.89339325,3692.0,3691.5,2.70885]
[1717796891975,0.8,3691.8,3691.5,2.70885]
[1717796892381,0.093184,3691.7,3691.5,2.70885]
[1717796892749,0.8,3691.8,3691.5,2.70885]
[1717796892970,0.09316144,3691.6,3691.5,2.70885]
[1717796893150,0.8,3691.8,3691.5,3.215385]
[1717796893549,0.09318857,3691.7,3691.5,3.215385]
[1717796893864,0.8,3691.8,3691.5,3.215385]
[1717796894178,0.0900247,3691.6,3691.5,3.215385]
[1717796894378,0.8,3691.8,3691.5,3.215385]
[1717796894699,0.09005183,3691.7,3691.5,3.215385]
[1717796895025,0.8,3691.8,3691.5,3.215385]
[1717796895495,0.09005183,3691.7,3691.5,3.215385]
[1717796895673,0.8,3691.8,3691.5,3.215385]
[1717796895870,0.0900247,3691.6,3691.5,3.215385]
[1717796896180,0.8,3691.8,3691.5,3.215385]
[1717796896363,0.0900247,3691.6,3691.5,3.215385]
[1717796896564,0.8,3691.8,3691.5,3.215385]
[1717796896910,0.8,3691.6,3691.5,2.70885]
[1717796897258,0.8900247,3691.6,3691.5,2.70885]
[1717796897497,0.0900247,3691.6,3691.5,2.70885]
[1717796897712,0.8900247,3691.6,3691.5,2.70885]
[1717796901298,0.8900247,3691.6,3690.5,2.7096]
[1717796901299,0.8900247,3691.6,3691.2,2.70913]
[1717796901462,0.8,3691.3,3691.2,2.70913]
[1717796901966,0.88926627,3691.3,3691.2,2.70913]
[1717796902907,3.19566627,3691.3,3691.2,2.70913]
[1717796903896,0.88926627,3691.3,3691.2,2.70913]
[1717796911401,0.88926627,3691.3,3690.8,2.70938]
[1717796922779,0.08926627,3691.3,3691.1,0.8]
[1717796922981,0.08926627,3691.3,3691.2,2.70914]
[1717796923178,0.585845,3691.7,3691.5,2.70892]
[1717796923381,7.43,3691.8,3691.5,2.70892]
[1717796923923,3.0,3692.2,3691.5,2.70892]
[1717796924214,0.07851111,3691.7,3691.5,2.70892]
[1717796924513,0.07848398,3691.6,3691.5,2.70892]
[1717796924700,0.8,3692.1,3691.5,2.70892]
[1717796924909,0.07848398,3691.6,3691.5,2.70892]
[1717796925086,0.8,3692.1,3691.5,2.70892]
[1717796925289,0.07848398,3691.6,3691.5,2.70892]
[1717796925501,0.8,3692.1,3691.5,2.70892]
[1717796925697,0.07848398,3691.6,3691.5,2.70892]
[1717796926015,1.9815714,3692.1,3691.5,2.70892]
[1717796926016,0.8,3692.1,3691.5,2.70892]
[1717796926218,0.07848398,3691.6,3691.5,2.70892]
[1717796926423,0.8,3692.1,3691.5,2.70892]
[1717796926619,0.07848398,3691.6,3691.5,2.70892]
[1717796926824,0.8,3692.1,3691.5,2.70892]
[1717796926987,0.07848398,3691.6,3691.5,2.70892]
[1717796927513,0.8,3692.1,3691.5,2.70892]
[1717796927709,0.07848398,3691.6,3691.5,2.70892]
[1717796928025,0.8,3692.1,3691.5,2.70892]
[1717796928223,0.07848398,3691.6,3691.5,2.70892]
[1717796928404,0.8,3692.1,3691.5,2.979812]
[1717796928603,0.07848398,3691.6,3691.5,2.70892]
[1717796929114,0.8,3692.1,3691.5,2.70892]
[1717796929313,0.07848398,3691.6,3691.5,2.70892]
[1717796929492,3.58571396,3692.2,3691.5,2.70892]
[1717796929691,0.07848398,3691.6,3691.5,2.70892]
[1717796929921,0.8,3692.0,3691.5,2.70892]
[1717796930220,0.58571396,3692.2,3691.2,2.70913]
[1717796930425,0.58571396,3692.2,3692.1,2.70848]
[1717796930587,1.38571396,3692.2,3692.1,2.70848]
[1717796930794,0.8,3692.2,3692.1,2.70848]
[1717796931537,8.23,3692.3,3692.1,2.70848]
[1717796932199,7.43,3692.3,3692.1,2.70848]
[1717796932815,7.43,3692.3,3692.1,3.215548]
[1717796935312,0.8,3692.5,3692.1,3.215548]
[1717796935642,0.8,3692.5,3692.3,2.70827]
[1717796938832,3.58562785,3693.1,3692.3,2.70827]
[1717796939036,0.8,3692.5,3692.3,2.70827]
[1717796939235,0.07849727,3692.4,3690.8,0.506438]
[1717796939466,0.07849727,3692.4,3690.5,0.75]
[1717796939467,0.8,3691.5,3691.3,2.70907]
[1717796940515,0.07836538,3691.4,3691.3,2.70907]
[1717796940918,0.8,3691.5,3691.3,2.70907]
[1717796941220,0.07836538,3691.4,3691.3,2.70907]
[1717796941437,0.07836538,3691.4,3691.3,2.979977]
[1717796941641,0.8,3691.5,3691.3,2.979977]
[1717796941946,0.07836538,3691.4,3691.3,2.979977]
[1717796942362,0.8,3691.5,3691.3,2.979977]
[1717796942716,0.07836538,3691.4,3691.3,2.979977]
[1717796943234,0.8,3691.5,3691.3,2.979977]
[1717796943432,0.07836538,3691.4,3691.3,2.979977]
[1717796943955,0.8,3691.5,3691.3,2.979977]
[1717796944163,0.07836538,3691.4,3691.3,2.979977]
[1717796946919,0.07836538,3691.4,3691.3,2.70907]
[1717796949128,0.8,3691.7,3691.3,2.70907]
[1717796949328,0.07836538,3691.4,3691.3,2.70907]
[1717796949532,0.8,3691.7,3691.3,2.70907]
[1717796950259,0.07841964,3691.6,3691.3,2.70907]
[1717796951173,3.2071,3691.5,3691.3,2.70907]
[1717796951454,0.87839251,3691.5,3691.3,2.70907]
[1717796954233,0.07839251,3691.5,3691.3,2.70907]
[1717796954762,0.07836538,3691.4,3691.3,2.70907]
[1717796954966,0.8,3691.6,3691.3,2.70907]
[1717796955132,0.07815978,3691.4,3691.3,2.70907]
[1717796955461,0.8,3691.6,3691.3,2.70907]
[1717796955971,0.07818691,3691.5,3691.3,2.70907]
[1717796957032,0.8,3691.6,3691.3,2.70907]
[1717796957250,0.07815978,3691.4,3691.3,2.70907]
[1717796957456,0.8,3691.6,3691.3,2.70907]
[1717796957660,0.07815978,3691.4,3691.3,2.70907]
[1717796957826,0.8,3691.6,3691.3,2.70907]
[1717796958031,0.07815978,3691.4,3691.3,2.70907]
[1717796958232,0.8,3691.6,3691.3,2.70907]
[1717796958433,0.07815978,3691.4,3691.3,2.70907]
[1717796958632,0.8,3691.6,3691.3,2.70907]
[1717796958835,0.07816891,3691.4,3691.3,2.70907]
[1717796959373,0.8,3691.6,3691.3,2.70907]
[1717796959560,0.07816891,3691.4,3691.3,2.70907]
[1717796959755,0.8,3691.6,3691.3,2.70907]
[1717796959962,0.07816891,3691.4,3691.3,2.70907]
[1717796960270,0.8,3691.5,3691.3,2.70907]
[1717796960468,0.07814835,3691.4,3691.3,2.70907]
[1717796962188,0.07812551,3691.4,3691.3,2.70907]
[1717796979313,0.07812551,3691.4,3691.0,2.70927]
[1717796979472,0.8,3691.2,3691.0,2.70927]
[1717796979984,0.07040072,3691.1,3691.0,2.70927]
[1717796980202,0.8,3691.2,3691.0,2.70927]
[1717796980576,0.07040072,3691.1,3691.0,2.70927]
[1717796980913,0.8,3691.2,3691.0,2.70927]
[1717796981295,0.07040072,3691.1,3691.0,2.70927]
[1717796981648,0.8,3691.2,3691.0,2.70927]
[1717796981989,0.07040072,3691.1,3691.0,2.70927]
[1717796982193,0.8,3691.2,3691.0,2.70927]
[1717796982398,0.07040072,3691.1,3691.0,2.70927]
[1717796984421,0.8,3691.2,3691.0,2.70927]
[1717796984736,0.07035958,3691.1,3691.0,2.70927]
[1717796985510,0.8,3691.2,3691.0,2.70927]
[1717796985705,0.07035272,3691.1,3691.0,2.70927]
[1717796990319,0.07035272,3691.1,3690.7,2.70948]
[1717796990743,0.8,3691.2,3690.7,2.70948]
[1717796990950,0.07033215,3691.1,3690.7,2.70948]
[1717796992058,0.87033215,3691.1,3690.7,2.70948]
[1717796992663,0.07033215,3691.1,3690.7,2.70948]
[1717796993553,0.07033215,3691.1,3691.0,2.70929]
[1717796993755,0.8,3691.2,3691.0,2.70929]